[Event "Titled Tuesday Blitz March 08 Late 2022"]
[White "Johnson, Donald"]
[Black "Melkumyan, Hrant"]
[WhiteFideId "30949122"]
[BlackFideId "13302485"]
[WhiteElo "1724"]
[BlackElo "2604"]
[Result "0-1"]
[Round "01"]
[TimeControl "180+1"]
[Date "2022.03.08"]
[WhiteClock "0:00:08"]
[BlackClock "0:00:20"]

1. e4 {[%clk 0:03:00]}  c6 {[%clk 0:02:47]} 2. d4 {[%clk 0:03:00]}  d5 {[%clk 0:02:46]} 3. e5 {[%clk 0:03:01]}  Bf5 {[%clk 0:02:45]} 4. Nf3 {[%clk 0:03:01]}  e6 {[%clk 0:02:45]} 5. Be2 {[%clk 0:03:01]}  Ne7 {[%clk 0:02:45]} 6. O-O {[%clk 0:03:02]}  Bg6 {[%clk 0:02:45]} 7. Nh4 {[%clk 0:02:51]}  c5 {[%clk 0:02:41]} 8. c3 {[%clk 0:02:50]}  Nbc6 {[%clk 0:02:41]} 9. Nxg6 {[%clk 0:02:35]}  hxg6 {[%clk 0:02:39]} 10. Be3 {[%clk 0:02:13]}  Nf5 {[%clk 0:02:18]} 11. Na3 {[%clk 0:02:09]}  Qh4 {[%clk 0:02:12]} 12. h3 {[%clk 0:02:05]}  cxd4 {[%clk 0:01:36]} 13. cxd4 {[%clk 0:02:04]}  Nfxd4 {[%clk 0:01:36]} 14. Nb5 {[%clk 0:01:58]}  Nxb5 {[%clk 0:01:23]} 15. Bxb5 {[%clk 0:01:59]}  Be7 {[%clk 0:01:22]} 16. Rc1 {[%clk 0:01:55]}  O-O {[%clk 0:01:21]} 17. Bxc6 {[%clk 0:01:51]}  bxc6 {[%clk 0:01:22]} 18. Rxc6 {[%clk 0:01:51]}  a5 {[%clk 0:01:22]} 19. Qd4 {[%clk 0:01:39]}  Qxd4 {[%clk 0:01:17]} 20. Bxd4 {[%clk 0:01:40]}  Rfb8 {[%clk 0:01:18]} 21. Rfc1 {[%clk 0:01:31]}  a4 {[%clk 0:01:16]} 22. Rc7 {[%clk 0:01:21]}  Bf8 {[%clk 0:01:16]} 23. Ra7 {[%clk 0:01:09]}  Bb4 {[%clk 0:00:57]} 24. Rcc7 {[%clk 0:00:57]}  Rxa7 {[%clk 0:00:52]} 25. Rxa7 {[%clk 0:00:58]}  a3 {[%clk 0:00:41]} 26. b3 {[%clk 0:00:47]}  Rc8 {[%clk 0:00:37]} 27. Ra4 {[%clk 0:00:46]}  Rc1+ {[%clk 0:00:31]} 28. Kh2 {[%clk 0:00:46]}  Be7 {[%clk 0:00:28]} 29. b4 {[%clk 0:00:33]}  Rc4 {[%clk 0:00:28]} 30. Be3 {[%clk 0:00:32]}  Bxb4 {[%clk 0:00:28]} 31. Ra8+ {[%clk 0:00:26]}  Kh7 {[%clk 0:00:28]} 32. Ra7 {[%clk 0:00:27]}  d4 {[%clk 0:00:27]} 33. Bf4 {[%clk 0:00:25]}  d3 {[%clk 0:00:27]} 34. Kg3 {[%clk 0:00:22]}  d2 {[%clk 0:00:22]} 35. Rd7 {[%clk 0:00:21]}  Rc2 {[%clk 0:00:22]} 36. Kf3 {[%clk 0:00:21]}  Rxa2 {[%clk 0:00:22]} 37. Rd4 {[%clk 0:00:15]}  Rb2 {[%clk 0:00:22]} 38. Bxd2 {[%clk 0:00:13]}  Bxd2 {[%clk 0:00:21]} 39. Ra4 {[%clk 0:00:13]}  a2 {[%clk 0:00:21]} 40. g3 {[%clk 0:00:13]}  Bb4 {[%clk 0:00:21]} 41. h4 {[%clk 0:00:11]}  Rb3+ {[%clk 0:00:21]} 42. Ke2 {[%clk 0:00:10]}  Ra3 {[%clk 0:00:22]} 43. Rxb4 {[%clk 0:00:09]}  a1=Q {[%clk 0:00:21]} 44. Re4 {[%clk 0:00:08]}  Qb1 {[%clk 0:00:19]} 45. Rf4 {[%clk 0:00:07]}  Qd3+ {[%clk 0:00:20]} 46. Ke1 {[%clk 0:00:08]}  Ra1# {[%clk 0:00:20]} 0-1


[Site "https://www.chess.com"]

[Event "Titled Tuesday Blitz March 08 Late 2022"]
[White "Kamsky, Gata"]
[Black "Molenda, Marcin"]
[WhiteFideId "2000024"]
[BlackFideId "1173065"]
[WhiteElo "2645"]
[BlackElo "2067"]
[Result "0-1"]
[Round "01"]
[TimeControl "180+1"]
[Date "2022.03.08"]
[WhiteClock "0:00:06"]
[BlackClock "0:01:18"]

1. e4 {[%clk 0:03:00]}  c5 {[%clk 0:02:57]} 2. Nf3 {[%clk 0:03:00]}  e6 {[%clk 0:02:57]} 3. d4 {[%clk 0:02:57]}  cxd4 {[%clk 0:02:58]} 4. Nxd4 {[%clk 0:02:57]}  Nc6 {[%clk 0:02:59]} 5. Nb5 {[%clk 0:02:56]}  d6 {[%clk 0:02:59]} 6. c4 {[%clk 0:02:53]}  Nf6 {[%clk 0:02:59]} 7. N1c3 {[%clk 0:02:53]}  a6 {[%clk 0:02:56]} 8. Nd4 {[%clk 0:02:53]}  Qc7 {[%clk 0:02:54]} 9. Be2 {[%clk 0:02:52]}  Be7 {[%clk 0:02:54]} 10. O-O {[%clk 0:02:52]}  O-O {[%clk 0:02:55]} 11. Be3 {[%clk 0:02:52]}  Nb8 {[%clk 0:02:55]} 12. Rc1 {[%clk 0:02:49]}  Nbd7 {[%clk 0:02:55]} 13. Qd2 {[%clk 0:02:48]}  b6 {[%clk 0:02:55]} 14. Rfd1 {[%clk 0:02:47]}  Bb7 {[%clk 0:02:55]} 15. f3 {[%clk 0:02:47]}  Rac8 {[%clk 0:02:52]} 16. Bf1 {[%clk 0:02:44]}  Rfd8 {[%clk 0:02:52]} 17. Qf2 {[%clk 0:02:41]}  Qb8 {[%clk 0:02:52]} 18. a3 {[%clk 0:02:32]}  Bf8 {[%clk 0:02:29]} 19. b4 {[%clk 0:02:30]}  d5 {[%clk 0:02:27]} 20. cxd5 {[%clk 0:02:27]}  exd5 {[%clk 0:02:28]} 21. Nxd5 {[%clk 0:02:14]}  Nxd5 {[%clk 0:02:26]} 22. exd5 {[%clk 0:02:13]}  Bxd5 {[%clk 0:02:22]} 23. Bxa6 {[%clk 0:02:09]}  Rxc1 {[%clk 0:02:21]} 24. Rxc1 {[%clk 0:02:09]}  Qa8 {[%clk 0:02:20]} 25. Bd3 {[%clk 0:01:41]}  Qxa3 {[%clk 0:02:18]} 26. Bf5 {[%clk 0:01:24]}  Nf6 {[%clk 0:02:14]} 27. Nb5 {[%clk 0:01:17]}  Qxb4 {[%clk 0:02:11]} 28. Rb1 {[%clk 0:01:16]}  Qa4 {[%clk 0:01:57]} 29. Nc3 {[%clk 0:01:11]}  Qa3 {[%clk 0:01:56]} 30. Qb2 {[%clk 0:00:41]}  Qxb2 {[%clk 0:01:47]} 31. Rxb2 {[%clk 0:00:41]}  Bc5 {[%clk 0:01:48]} 32. Bxc5 {[%clk 0:00:40]}  bxc5 {[%clk 0:01:48]} 33. Na4 {[%clk 0:00:39]}  c4 {[%clk 0:01:47]} 34. Rd2 {[%clk 0:00:37]}  g6 {[%clk 0:01:39]} 35. Be4 {[%clk 0:00:31]}  Ra8 {[%clk 0:01:39]} 36. Bxd5 {[%clk 0:00:30]}  Nxd5 {[%clk 0:01:37]} 37. Rxd5 {[%clk 0:00:30]}  Rxa4 {[%clk 0:01:37]} 38. Rc5 {[%clk 0:00:31]}  Ra1+ {[%clk 0:01:36]} 39. Kf2 {[%clk 0:00:30]}  Rc1 {[%clk 0:01:37]} 40. g4 {[%clk 0:00:30]}  Kg7 {[%clk 0:01:35]} 41. g5 {[%clk 0:00:29]}  h6 {[%clk 0:01:34]} 42. h4 {[%clk 0:00:29]}  hxg5 {[%clk 0:01:32]} 43. hxg5 {[%clk 0:00:29]}  Kf8 {[%clk 0:01:30]} 44. Rc7 {[%clk 0:00:28]}  c3 {[%clk 0:01:30]} 45. Kg2 {[%clk 0:00:28]}  c2 {[%clk 0:01:28]} 46. Kh2 {[%clk 0:00:27]}  Ke8 {[%clk 0:01:29]} 47. Kg2 {[%clk 0:00:26]}  Kd8 {[%clk 0:01:29]} 48. Rc4 {[%clk 0:00:26]}  Kd7 {[%clk 0:01:29]} 49. Rc3 {[%clk 0:00:25]}  Kd6 {[%clk 0:01:29]} 50. Rc8 {[%clk 0:00:24]}  Ke5 {[%clk 0:01:28]} 51. Rc4 {[%clk 0:00:24]}  Kf5 {[%clk 0:01:26]} 52. Rc5+ {[%clk 0:00:20]}  Kf4 {[%clk 0:01:26]} 53. Rc4+ {[%clk 0:00:16]}  Kxg5 {[%clk 0:01:26]} 54. Kh2 {[%clk 0:00:16]}  Kf5 {[%clk 0:01:24]} 55. Kg2 {[%clk 0:00:16]}  Ke5 {[%clk 0:01:24]} 56. Rc8 {[%clk 0:00:16]}  f5 {[%clk 0:01:22]} 57. Rc6 {[%clk 0:00:15]}  g5 {[%clk 0:01:22]} 58. Rc4 {[%clk 0:00:14]}  Kd5 {[%clk 0:01:21]} 59. Rc7 {[%clk 0:00:14]}  Kd4 {[%clk 0:01:22]} 60. Rc8 {[%clk 0:00:14]}  Ke3 {[%clk 0:01:22]} 61. Re8+ {[%clk 0:00:14]}  Kf4 {[%clk 0:01:19]} 62. Rc8 {[%clk 0:00:14]}  g4 {[%clk 0:01:19]} 63. Rc4+ {[%clk 0:00:12]}  Kg5 {[%clk 0:01:19]} 64. fxg4 {[%clk 0:00:11]}  f4 {[%clk 0:01:19]} 65. Rc8 {[%clk 0:00:09]}  Kxg4 {[%clk 0:01:19]} 66. Rc4 {[%clk 0:00:07]}  Kf5 {[%clk 0:01:19]} 67. Kh2 {[%clk 0:00:06]}  f3 {[%clk 0:01:18]} 0-1


[Site "https://www.chess.com"]

[Event "Titled Tuesday Blitz March 08 Late 2022"]
[White "Kanyamarala, Tarun"]
[Black "Vine, Elzbieta"]
[WhiteFideId "45004714"]
[BlackFideId "1119320"]
[WhiteElo "2075"]
[BlackElo "1823"]
[Result "1-0"]
[Round "01"]
[TimeControl "180+1"]
[Date "2022.03.09"]
[WhiteClock "0:00:57"]
[BlackClock "0:00:01"]

1. e4 {[%clk 0:02:59]}  c5 {[%clk 0:02:58]} 2. Nf3 {[%clk 0:02:57]}  d6 {[%clk 0:02:58]} 3. Bb5+ {[%clk 0:02:56]}  Nc6 {[%clk 0:02:54]} 4. Bxc6+ {[%clk 0:02:52]}  bxc6 {[%clk 0:02:53]} 5. e5 {[%clk 0:02:52]}  g6 {[%clk 0:02:29]} 6. exd6 {[%clk 0:02:50]}  exd6 {[%clk 0:02:28]} 7. O-O {[%clk 0:02:50]}  Bg7 {[%clk 0:02:22]} 8. Re1+ {[%clk 0:02:46]}  Be6 {[%clk 0:02:21]} 9. d4 {[%clk 0:02:45]}  Nf6 {[%clk 0:02:09]} 10. Ng5 {[%clk 0:02:28]}  O-O {[%clk 0:02:08]} 11. Rxe6 {[%clk 0:02:20]}  fxe6 {[%clk 0:01:58]} 12. Nxe6 {[%clk 0:02:19]}  Qe7 {[%clk 0:01:57]} 13. Nxf8 {[%clk 0:02:19]}  Rxf8 {[%clk 0:01:56]} 14. Nc3 {[%clk 0:02:15]}  cxd4 {[%clk 0:01:55]} 15. Ne2 {[%clk 0:02:14]}  c5 {[%clk 0:01:52]} 16. Ng3 {[%clk 0:02:10]}  Re8 {[%clk 0:01:48]} 17. Bg5 {[%clk 0:02:08]}  Qe5 {[%clk 0:01:43]} 18. Bxf6 {[%clk 0:02:06]}  Bxf6 {[%clk 0:01:41]} 19. Qf3 {[%clk 0:02:03]}  d5 {[%clk 0:01:35]} 20. h3 {[%clk 0:01:59]}  Kg7 {[%clk 0:01:30]} 21. a3 {[%clk 0:01:56]}  Rf8 {[%clk 0:01:25]} 22. Qg4 {[%clk 0:01:47]}  Rf7 {[%clk 0:01:12]} 23. Kf1 {[%clk 0:01:43]}  d3 {[%clk 0:01:08]} 24. c3 {[%clk 0:01:34]}  d2 {[%clk 0:01:06]} 25. Rd1 {[%clk 0:01:32]}  Re7 {[%clk 0:01:02]} 26. Qe2 {[%clk 0:01:25]}  Qf4 {[%clk 0:00:53]} 27. Qxd2 {[%clk 0:01:24]}  Qxd2 {[%clk 0:00:48]} 28. Rxd2 {[%clk 0:01:24]}  d4 {[%clk 0:00:46]} 29. cxd4 {[%clk 0:01:22]}  Bxd4 {[%clk 0:00:43]} 30. Ne2 {[%clk 0:01:19]}  Be5 {[%clk 0:00:37]} 31. Rc2 {[%clk 0:01:17]}  Bd6 {[%clk 0:00:35]} 32. Nc3 {[%clk 0:01:13]}  a6 {[%clk 0:00:30]} 33. Rd2 {[%clk 0:01:10]}  Re6 {[%clk 0:00:26]} 34. g3 {[%clk 0:01:07]}  Kf7 {[%clk 0:00:18]} 35. h4 {[%clk 0:01:07]}  Ke7 {[%clk 0:00:13]} 36. Nd5+ {[%clk 0:01:07]}  Kf7 {[%clk 0:00:12]} 37. Rc2 {[%clk 0:01:05]}  Re5 {[%clk 0:00:10]} 38. Nb6 {[%clk 0:01:04]}  Rf5 {[%clk 0:00:06]} 39. Nc4 {[%clk 0:01:04]}  Bxg3 {[%clk 0:00:04]} 40. Kg2 {[%clk 0:00:57]}  Bxh4 {[%clk 0:00:03]} 41. Nd6+ {[%clk 0:00:57]}  Ke6 {[%clk 0:00:01]} 42. Nxf5 {[%clk 0:00:57]} 1-0


[Site "https://www.chess.com"]

[Event "Titled Tuesday Blitz March 08 Late 2022"]
[White "Karas, Marek"]
[Black "Chigaev, Maksim"]
[WhiteFideId "14928558"]
[BlackFideId "4108116"]
[WhiteElo "2271"]
[BlackElo "2502"]
[Result "1-0"]
[Round "01"]
[TimeControl "180+1"]
[Date "2022.03.08"]
[WhiteClock "0:01:29"]
[BlackClock "0:00:51"]

1. d4 {[%clk 0:02:59]}  Nf6 {[%clk 0:02:55]} 2. Bf4 {[%clk 0:02:59]}  d6 {[%clk 0:02:55]} 3. Nc3 {[%clk 0:02:58]}  Nbd7 {[%clk 0:02:56]} 4. Nf3 {[%clk 0:02:59]}  c5 {[%clk 0:02:56]} 5. e3 {[%clk 0:02:59]}  g6 {[%clk 0:02:56]} 6. h3 {[%clk 0:02:57]}  Bg7 {[%clk 0:02:56]} 7. Be2 {[%clk 0:02:53]}  O-O {[%clk 0:02:56]} 8. O-O {[%clk 0:02:51]}  a6 {[%clk 0:02:53]} 9. a4 {[%clk 0:02:50]}  b6 {[%clk 0:02:53]} 10. Bh2 {[%clk 0:02:48]}  Bb7 {[%clk 0:02:53]} 11. d5 {[%clk 0:02:45]}  Rb8 {[%clk 0:02:41]} 12. e4 {[%clk 0:02:45]}  Ne8 {[%clk 0:02:38]} 13. Re1 {[%clk 0:02:41]}  Nc7 {[%clk 0:02:37]} 14. Bf1 {[%clk 0:02:39]}  Ba8 {[%clk 0:02:19]} 15. e5 {[%clk 0:02:36]}  Nxe5 {[%clk 0:02:18]} 16. Nxe5 {[%clk 0:02:36]}  dxe5 {[%clk 0:02:19]} 17. Bxe5 {[%clk 0:02:36]}  Bxe5 {[%clk 0:02:19]} 18. Rxe5 {[%clk 0:02:36]}  Qd6 {[%clk 0:02:19]} 19. Qe1 {[%clk 0:02:34]}  e6 {[%clk 0:02:00]} 20. dxe6 {[%clk 0:02:26]}  Nxe6 {[%clk 0:02:00]} 21. Rd1 {[%clk 0:02:15]}  Nd4 {[%clk 0:01:52]} 22. Bxa6 {[%clk 0:02:05]}  Qf6 {[%clk 0:01:40]} 23. Nd5 {[%clk 0:01:57]}  Bxd5 {[%clk 0:01:35]} 24. Rxd5 {[%clk 0:01:58]}  Nxc2 {[%clk 0:01:21]} 25. Qe5 {[%clk 0:01:55]}  Qxe5 {[%clk 0:01:21]} 26. Rxe5 {[%clk 0:01:56]}  Nd4 {[%clk 0:01:21]} 27. Bc4 {[%clk 0:01:51]}  Kg7 {[%clk 0:01:15]} 28. Rde1 {[%clk 0:01:46]}  Nc6 {[%clk 0:01:05]} 29. Rd5 {[%clk 0:01:42]}  Rfe8 {[%clk 0:01:05]} 30. Rxe8 {[%clk 0:01:39]}  Rxe8 {[%clk 0:01:06]} 31. Rd6 {[%clk 0:01:39]}  Re1+ {[%clk 0:01:05]} 32. Kh2 {[%clk 0:01:39]}  Ne5 {[%clk 0:01:01]} 33. Bb5 {[%clk 0:01:37]}  Rb1 {[%clk 0:00:57]} 34. f4 {[%clk 0:01:34]}  Nf3+ {[%clk 0:00:52]} 35. gxf3 {[%clk 0:01:34]}  Rxb2+ {[%clk 0:00:53]} 36. Kg3 {[%clk 0:01:35]}  h5 {[%clk 0:00:51]} 37. h4 {[%clk 0:01:29]}  Rb4 {[%clk 0:00:51]} 38. Rxb6 {[%clk 0:01:29]} 1-0


[Site "https://www.chess.com"]

[Event "Titled Tuesday Blitz March 08 Late 2022"]
[White "Karttunen, Mika"]
[Black "Avazkhonov, Alikhon"]
[WhiteFideId "502081"]
[BlackFideId "14208504"]
[WhiteElo "2682"]
[BlackElo "2373"]
[Result "0-1"]
[Round "01"]
[TimeControl "180+1"]
[Date "2022.03.09"]
[WhiteClock "0:00:14"]
[BlackClock "0:00:03"]

1. e4 {[%clk 0:03:00]}  c6 {[%clk 0:02:53]} 2. d4 {[%clk 0:03:00]}  d5 {[%clk 0:02:53]} 3. e5 {[%clk 0:03:00]}  c5 {[%clk 0:02:53]} 4. dxc5 {[%clk 0:02:59]}  e6 {[%clk 0:02:53]} 5. Nf3 {[%clk 0:02:58]}  Bxc5 {[%clk 0:02:52]} 6. Bd3 {[%clk 0:02:58]}  Nc6 {[%clk 0:02:52]} 7. O-O {[%clk 0:02:57]}  f6 {[%clk 0:02:51]} 8. Qe2 {[%clk 0:02:47]}  fxe5 {[%clk 0:02:45]} 9. Nxe5 {[%clk 0:02:45]}  Nf6 {[%clk 0:02:45]} 10. Nd2 {[%clk 0:02:19]}  Nxe5 {[%clk 0:02:24]} 11. Qxe5 {[%clk 0:02:18]}  O-O {[%clk 0:02:25]} 12. Nf3 {[%clk 0:02:16]}  Bd6 {[%clk 0:02:22]} 13. Qg5 {[%clk 0:02:12]}  Qc7 {[%clk 0:02:18]} 14. c4 {[%clk 0:01:39]}  e5 {[%clk 0:01:28]} 15. c5 {[%clk 0:01:35]}  Qxc5 {[%clk 0:01:10]} 16. Be3 {[%clk 0:01:20]}  d4 {[%clk 0:00:32]} 17. Rac1 {[%clk 0:01:19]}  Qb6 {[%clk 0:00:32]} 18. Bc4+ {[%clk 0:01:15]}  Kh8 {[%clk 0:00:31]} 19. Bd2 {[%clk 0:01:06]}  e4 {[%clk 0:00:27]} 20. Ne5 {[%clk 0:01:05]}  Bxe5 {[%clk 0:00:24]} 21. Qxe5 {[%clk 0:01:04]}  Bg4 {[%clk 0:00:20]} 22. Bg5 {[%clk 0:00:48]}  Rae8 {[%clk 0:00:19]} 23. Qg3 {[%clk 0:00:48]}  Be6 {[%clk 0:00:18]} 24. b3 {[%clk 0:00:38]}  Bxc4 {[%clk 0:00:15]} 25. Rxc4 {[%clk 0:00:39]}  d3 {[%clk 0:00:14]} 26. Be3 {[%clk 0:00:34]}  Qe6 {[%clk 0:00:14]} 27. Rc7 {[%clk 0:00:33]}  Re7 {[%clk 0:00:09]} 28. Bd4 {[%clk 0:00:33]}  Rxc7 {[%clk 0:00:09]} 29. Qxc7 {[%clk 0:00:32]}  Qc6 {[%clk 0:00:06]} 30. Qg3 {[%clk 0:00:28]}  a6 {[%clk 0:00:05]} 31. h3 {[%clk 0:00:28]}  h6 {[%clk 0:00:05]} 32. Qe5 {[%clk 0:00:20]}  Qd5 {[%clk 0:00:04]} 33. Qxd5 {[%clk 0:00:17]}  Nxd5 {[%clk 0:00:05]} 34. Rc1 {[%clk 0:00:17]}  Nf4 {[%clk 0:00:05]} 35. Kf1 {[%clk 0:00:11]}  Ne2 {[%clk 0:00:06]} 36. Rc4 {[%clk 0:00:12]}  Nxd4 {[%clk 0:00:05]} 37. Rxd4 {[%clk 0:00:12]}  Rc8 {[%clk 0:00:05]} 38. f3 {[%clk 0:00:12]}  Rc1+ {[%clk 0:00:05]} 39. Kf2 {[%clk 0:00:13]}  Rc2+ {[%clk 0:00:04]} 40. Kg3 {[%clk 0:00:13]}  d2 {[%clk 0:00:03]} 41. fxe4 {[%clk 0:00:13]}  Rxa2 {[%clk 0:00:03]} 42. Kf2 {[%clk 0:00:13]}  d1=Q+ {[%clk 0:00:02]} 43. Ke3 {[%clk 0:00:14]}  Qxb3+ {[%clk 0:00:03]} 44. Kf4 {[%clk 0:00:14]}  Qe6 {[%clk 0:00:03]} 0-1


[Site "https://www.chess.com"]

[Event "Titled Tuesday Blitz March 08 Late 2022"]
[White "Khabinets, Ivan"]
[Black "Indjic, Aleksandar"]
[WhiteFideId "14115980"]
[BlackFideId "911925"]
[WhiteElo "2114"]
[BlackElo "2616"]
[Result "0-1"]
[Round "01"]
[TimeControl "180+1"]
[Date "2022.03.08"]
[WhiteClock "0:00:22"]
[BlackClock "0:01:11"]

1. e4 {[%clk 0:02:44]}  c6 {[%clk 0:02:59]} 2. d4 {[%clk 0:02:43]}  d5 {[%clk 0:02:59]} 3. e5 {[%clk 0:02:44]}  c5 {[%clk 0:02:59]} 4. dxc5 {[%clk 0:02:44]}  e6 {[%clk 0:03:00]} 5. a3 {[%clk 0:02:44]}  Bxc5 {[%clk 0:02:59]} 6. Nf3 {[%clk 0:02:45]}  Ne7 {[%clk 0:02:58]} 7. b4 {[%clk 0:02:45]}  Bb6 {[%clk 0:02:57]} 8. Bb2 {[%clk 0:02:46]}  a5 {[%clk 0:02:56]} 9. Bd3 {[%clk 0:02:44]}  Na6 {[%clk 0:02:55]} 10. c3 {[%clk 0:02:42]}  Ng6 {[%clk 0:02:54]} 11. O-O {[%clk 0:02:41]}  O-O {[%clk 0:02:52]} 12. Re1 {[%clk 0:02:40]}  Nf4 {[%clk 0:02:43]} 13. Bf1 {[%clk 0:02:39]}  f6 {[%clk 0:02:42]} 14. exf6 {[%clk 0:02:36]}  Qxf6 {[%clk 0:02:40]} 15. Nbd2 {[%clk 0:02:16]}  e5 {[%clk 0:02:38]} 16. Rxe5 {[%clk 0:02:12]}  Bg4 {[%clk 0:02:36]} 17. c4 {[%clk 0:02:08]}  Bc7 {[%clk 0:02:15]} 18. Qc2 {[%clk 0:01:43]}  Bxe5 {[%clk 0:02:03]} 19. Nxe5 {[%clk 0:01:30]}  Ne2+ {[%clk 0:01:50]} 20. Bxe2 {[%clk 0:01:23]}  Qxf2+ {[%clk 0:01:50]} 21. Kh1 {[%clk 0:01:23]}  Bxe2 {[%clk 0:01:50]} 22. cxd5 {[%clk 0:01:22]}  Rac8 {[%clk 0:01:48]} 23. Qe4 {[%clk 0:01:18]}  Bh5 {[%clk 0:01:41]} 24. Nec4 {[%clk 0:00:55]}  axb4 {[%clk 0:01:26]} 25. axb4 {[%clk 0:00:54]}  Nxb4 {[%clk 0:01:25]} 26. Bd4 {[%clk 0:00:54]}  Qe2 {[%clk 0:01:18]} 27. Be3 {[%clk 0:00:38]}  Rce8 {[%clk 0:01:15]} 28. Qh4 {[%clk 0:00:29]}  Nc2 {[%clk 0:01:12]} 29. Rc1 {[%clk 0:00:25]}  Nxe3 {[%clk 0:01:11]} 30. Nxe3 {[%clk 0:00:22]}  Qxd2 {[%clk 0:01:11]} 0-1


[Site "https://www.chess.com"]

[Event "Titled Tuesday Blitz March 08 Late 2022"]
[White "Kim, Sergey"]
[Black "Burke, Paul"]
[WhiteFideId "13700570"]
[BlackFideId "2605767"]
[WhiteElo "2541"]
[BlackElo "1875"]
[Result "1-0"]
[Round "01"]
[TimeControl "180+1"]
[Date "2022.03.09"]
[WhiteClock "0:01:04"]
[BlackClock "0:00:03"]

1. d4 {[%clk 0:02:59]}  Nf6 {[%clk 0:02:58]} 2. c4 {[%clk 0:03:00]}  c5 {[%clk 0:02:58]} 3. d5 {[%clk 0:02:59]}  Ne4 {[%clk 0:02:58]} 4. f3 {[%clk 0:02:53]}  Qa5+ {[%clk 0:02:58]} 5. Nd2 {[%clk 0:02:52]}  Nf6 {[%clk 0:02:57]} 6. e4 {[%clk 0:02:51]}  d6 {[%clk 0:02:57]} 7. b3 {[%clk 0:02:50]}  g6 {[%clk 0:02:52]} 8. Bb2 {[%clk 0:02:49]}  Bg7 {[%clk 0:02:52]} 9. Qc2 {[%clk 0:02:48]}  O-O {[%clk 0:02:51]} 10. Ne2 {[%clk 0:02:49]}  Na6 {[%clk 0:02:50]} 11. a3 {[%clk 0:02:48]}  Qd8 {[%clk 0:02:45]} 12. Nc3 {[%clk 0:02:46]}  h6 {[%clk 0:02:44]} 13. Bd3 {[%clk 0:02:45]}  e5 {[%clk 0:02:43]} 14. O-O {[%clk 0:02:41]}  Bd7 {[%clk 0:02:42]} 15. Rab1 {[%clk 0:02:40]}  b6 {[%clk 0:02:41]} 16. Ba1 {[%clk 0:02:39]}  Nh5 {[%clk 0:02:35]} 17. Ne2 {[%clk 0:02:39]}  f5 {[%clk 0:02:27]} 18. exf5 {[%clk 0:02:34]}  gxf5 {[%clk 0:02:27]} 19. b4 {[%clk 0:02:32]}  Qe7 {[%clk 0:02:02]} 20. b5 {[%clk 0:02:19]}  Nc7 {[%clk 0:02:00]} 21. Rbe1 {[%clk 0:02:19]}  Qf7 {[%clk 0:01:56]} 22. Qd1 {[%clk 0:02:08]}  Rae8 {[%clk 0:01:52]} 23. f4 {[%clk 0:02:06]}  e4 {[%clk 0:01:39]} 24. Bc2 {[%clk 0:02:04]}  Nf6 {[%clk 0:01:38]} 25. Ng3 {[%clk 0:02:02]}  a6 {[%clk 0:01:34]} 26. a4 {[%clk 0:02:01]}  axb5 {[%clk 0:01:34]} 27. axb5 {[%clk 0:02:01]}  e3 {[%clk 0:01:27]} 28. Nf3 {[%clk 0:01:57]}  Ng4 {[%clk 0:01:23]} 29. Bxg7 {[%clk 0:01:50]}  Qxg7 {[%clk 0:01:22]} 30. Qd3 {[%clk 0:01:45]}  Nf2 {[%clk 0:01:14]} 31. Qe2 {[%clk 0:01:42]}  Qc3 {[%clk 0:01:01]} 32. Nh4 {[%clk 0:01:35]}  Qd4 {[%clk 0:00:32]} 33. Bxf5 {[%clk 0:01:26]}  Bxf5 {[%clk 0:00:27]} 34. Nhxf5 {[%clk 0:01:25]}  Qxf4 {[%clk 0:00:27]} 35. Nxe3 {[%clk 0:01:23]}  Rxe3 {[%clk 0:00:12]} 36. Qxe3 {[%clk 0:01:23]}  Qxe3 {[%clk 0:00:12]} 37. Rxe3 {[%clk 0:01:22]}  Ng4 {[%clk 0:00:12]} 38. Rxf8+ {[%clk 0:01:16]}  Kxf8 {[%clk 0:00:11]} 39. Re4 {[%clk 0:01:10]}  Ne5 {[%clk 0:00:11]} 40. Nf5 {[%clk 0:01:09]}  Ne8 {[%clk 0:00:08]} 41. Nxh6 {[%clk 0:01:07]}  Kg7 {[%clk 0:00:08]} 42. Nf5+ {[%clk 0:01:06]}  Kf6 {[%clk 0:00:08]} 43. g4 {[%clk 0:01:06]}  Kg5 {[%clk 0:00:07]} 44. h4+ {[%clk 0:01:06]}  Kf6 {[%clk 0:00:05]} 45. h5 {[%clk 0:01:06]}  Kg5 {[%clk 0:00:04]} 46. Nxd6 {[%clk 0:01:05]}  Nxd6 {[%clk 0:00:03]} 47. Rxe5+ {[%clk 0:01:06]}  Kxg4 {[%clk 0:00:03]} 48. h6 {[%clk 0:01:05]}  Nxc4 {[%clk 0:00:03]} 49. Re6 {[%clk 0:01:04]} 1-0


[Site "https://www.chess.com"]

[Event "Titled Tuesday Blitz March 08 Late 2022"]
[White "Korchmar, Vasiliy"]
[Black "Jakubowska, Anna"]
[WhiteFideId "24131750"]
[BlackFideId "1121952"]
[WhiteElo "2654"]
[BlackElo "2344"]
[Result "1-0"]
[Round "01"]
[TimeControl "180+1"]
[Date "2022.03.09"]
[WhiteClock "0:01:31"]
[BlackClock "0:00:39"]

1. d4 {[%clk 0:02:59]}  d5 {[%clk 0:02:56]} 2. Bf4 {[%clk 0:02:59]}  Nf6 {[%clk 0:02:56]} 3. e3 {[%clk 0:02:59]}  c5 {[%clk 0:02:56]} 4. Nf3 {[%clk 0:02:58]}  Nc6 {[%clk 0:02:56]} 5. Nbd2 {[%clk 0:02:58]}  h6 {[%clk 0:02:50]} 6. dxc5 {[%clk 0:02:49]}  e6 {[%clk 0:02:46]} 7. Nb3 {[%clk 0:02:44]}  Na5 {[%clk 0:02:36]} 8. Ne5 {[%clk 0:02:28]}  Nxb3 {[%clk 0:02:31]} 9. axb3 {[%clk 0:02:29]}  Bxc5 {[%clk 0:02:31]} 10. Bb5+ {[%clk 0:02:29]}  Nd7 {[%clk 0:02:28]} 11. Qg4 {[%clk 0:02:14]}  g5 {[%clk 0:02:08]} 12. Bg3 {[%clk 0:02:05]}  a6 {[%clk 0:01:59]} 13. Qh5 {[%clk 0:01:55]}  Qe7 {[%clk 0:01:55]} 14. h4 {[%clk 0:01:52]}  Rg8 {[%clk 0:01:13]} 15. Qxh6 {[%clk 0:01:40]}  f6 {[%clk 0:00:51]} 16. Qh5+ {[%clk 0:01:37]}  Kd8 {[%clk 0:00:50]} 17. Nf7+ {[%clk 0:01:36]}  Ke8 {[%clk 0:00:48]} 18. Nh6+ {[%clk 0:01:31]}  Kf8 {[%clk 0:00:46]} 19. Nxg8 {[%clk 0:01:31]}  Kxg8 {[%clk 0:00:45]} 20. hxg5 {[%clk 0:01:32]}  fxg5 {[%clk 0:00:39]} 21. Qh8+ {[%clk 0:01:31]}  Kf7 {[%clk 0:00:39]} 22. Rh7+ {[%clk 0:01:31]} 1-0


[Site "https://www.chess.com"]